bitfinex/quotes_SOLUSD_20250601
["timestamp","ask_amount","ask_price","bid_price","bid_amount"]
[1748815036376,25.75153954,156.87,156.84,18.87247458]
[1748815039357,25.75153954,156.87,156.84,6.3759245]
[1748815040178,12.49655008,156.88,156.84,6.3759245]
[1748815042355,148.9,156.89,156.84,6.3759245]
[1748815042556,12.49655008,156.88,156.84,18.87247458]
[1748815045582,12.49655008,156.88,156.84,6.3759245]
[1748815046182,12.49655008,156.88,156.85,10.22]
[1748815048687,12.49655008,156.88,156.85,16.59547516]
[1748815050084,148.9,156.89,156.85,16.59547516]
[1748815050379,12.49655008,156.88,156.85,16.59547516]
[1748815050981,148.9,156.89,156.86,10.22]
[1748815051190,12.49655008,156.88,156.86,10.22]
[1748815055673,12.49655008,156.88,156.87,10.22]
[1748815060381,12.49655008,156.88,156.87,10.22]
[1748815067591,161.39655008,156.89,156.87,10.22]
[1748815072923,148.9,156.88,156.87,10.22]
[1748815111163,148.9,156.88,156.87,16.59470516]
[1748815111753,148.9,156.88,156.87,29.09125524]
[1748815112259,148.9,156.92,156.87,29.09125524]
[1748815112470,148.9,156.92,156.88,12.49655008]
[1748815113279,148.9,156.92,156.89,6.37389253]
[1748815115669,148.9,156.92,156.89,18.87044261]
[1748815116457,148.9,156.92,156.91,12.49655008]
[1748815117468,148.9,156.92,156.91,18.86963018]
[1748815118259,148.9,156.92,156.91,6.3730801]
[1748815124851,161.39655008,156.92,156.91,10.1]
[1748815126274,148.9,156.91,156.89,10.1]
[1748815126487,161.39655008,156.91,156.89,10.1]
[1748815129375,161.39655008,156.91,156.88,10.1]
[1748815129561,12.49655008,156.89,156.87,10.1]
[1748815129763,12.49655008,156.89,156.84,38.49655008]
[1748815130076,161.39655008,156.88,156.85,10.1]
[1748815130656,12.49655008,156.86,156.85,10.12]
[1748815133991,12.49655008,156.86,156.82,6.37662149]
[1748815134206,12.49655008,156.84,156.83,10.12]
[1748815134524,14.09395008,156.84,156.8,10.12]
[1748815134816,12.49655008,156.81,156.8,10.12]
[1748815134992,12.49655008,156.82,156.8,10.12]
[1748815135827,12.49655008,156.82,156.79,91.74]
[1748815136030,12.49655008,156.82,156.79,101.86]
[1748815138045,148.9,156.81,156.79,101.86]
[1748815138611,148.9,156.8,156.79,101.86]
[1748815139516,200.47655008,156.8,156.74,16.49999234]
[1748815139743,12.49655008,156.78,156.74,16.49999234]
[1748815142324,187.98,156.8,156.74,16.49999234]
[1748815142325,12.49655008,156.77,156.74,16.49999234]
[1748815148117,12.49655008,156.78,156.74,16.49999234]
[1748815148843,12.49655008,156.77,156.74,16.49999234]
[1748815149520,12.49655008,156.78,156.74,16.49999234]
[1748815150026,148.9,156.77,156.74,16.49999234]
[1748815155147,148.9,156.77,156.76,12.49655008]
[1748815155651,148.9,156.83,156.78,26.0]
[1748815155949,175.38095972,156.87,156.82,12.49655008]
[1748815156366,162.88440964,156.87,156.83,12.49655008]
[1748815156730,162.88440964,156.87,156.84,10.12]
[1748815156931,175.38095972,156.87,156.84,10.12]
[1748815157142,162.88440964,156.87,156.84,10.12]
[1748815157343,182.39132612,156.87,156.84,10.12]
[1748815157851,162.88440964,156.87,156.84,10.12]
[1748815158172,182.39132612,156.87,156.84,16.4958241]
[1748815158527,162.88440964,156.87,156.84,16.4958241]
[1748815158725,162.88440964,156.87,156.84,36.00274058]
[1748815159847,162.88440964,156.87,156.85,19.50691648]
[1748815160862,162.88440964,156.87,156.85,6.37529103]
[1748815161536,162.88440964,156.87,156.82,29.62691648]
[1748815161734,182.39132612,156.87,156.82,10.12]
[1748815161942,19.50691648,156.86,156.82,10.12]
[1748815162154,201.94440964,156.87,156.82,29.62691648]
[1748815163357,221.45132612,156.87,156.82,36.00336755]
[1748815164659,148.9,156.86,156.82,36.00336755]
[1748815166658,148.9,156.86,156.83,19.50691648]
[1748815167843,148.9,156.86,156.84,6.3759245]
[1748815169860,148.9,156.86,156.83,6.37633105]
[1748815172537,148.9,156.86,156.83,25.88324753]
[1748815172959,148.9,156.86,156.83,6.37633105]
[1748815184876,148.9,156.86,156.83,18.8584642]
[1748815185055,148.9,156.86,156.85,12.48213315]
[1748815186273,148.9,156.86,156.85,18.85765116]
[1748815186659,148.9,156.9,156.85,73.81644618]
[1748815186860,148.9,156.9,156.88,12.48213315]
[1748815187182,148.9,156.9,156.88,29.61149041]
[1748815187559,148.9,156.9,156.89,19.49149041]
[1748815187867,150.4946,156.96,156.89,19.49149041]
[1748815188046,150.4946,156.96,156.92,19.49149041]
[1748815188553,150.4946,156.96,156.93,6.37226789]
[1748815189359,148.9,156.96,156.93,25.8637583]
[1748815189560,148.9,156.96,156.93,29.61149041]
[1748815189959,148.9,156.96,156.93,10.12]
[1748815191072,25.8605955,157.01,156.95,19.49149041]
[1748815191261,19.49149041,157.01,156.96,19.49149041]
[1748815191457,207.41149041,157.02,156.96,25.86253445]
[1748815191660,168.39149041,157.02,156.97,19.49149041]
[1748815192868,168.39149041,157.02,156.96,25.86253445]
[1748815193371,19.49149041,157.01,156.96,25.86253445]
[1748815195983,19.49149041,157.01,156.97,0.5]
[1748815196494,25.86056901,157.01,156.97,0.5]
[1748815196694,19.49149041,157.0,156.97,0.5]
[1748815196977,6.3690786,157.01,156.97,0.5]
[1748815196978,19.49149041,156.98,156.97,0.5]
[1748815197380,19.49149041,156.98,156.93,75.00367834]
[1748815197692,19.49149041,156.99,156.93,75.00367834]
[1748815197984,25.8614809,156.99,156.94,19.49149041]
[1748815198167,25.8614809,156.99,156.94,10.1]
[1748815198168,19.49149041,156.97,156.94,10.1]
[1748815198362,148.9,156.96,156.94,10.1]
[1748815198961,148.9,156.95,156.92,11.77016453]
[1748815199167,168.39149041,156.95,156.92,11.77016453]
[1748815200181,174.76301686,156.95,156.92,11.77016453]
[1748815200355,148.9,156.94,156.92,1.67016453]
[1748815200673,168.39149041,156.93,156.92,1.67016453]
[1748815200877,19.49149041,156.93,156.92,1.67016453]
[1748815201781,45.37152645,156.95,156.92,1.67016453]
[1748815202085,19.49149041,156.94,156.92,1.67016453]
[1748815202479,1.6589,156.99,156.92,1.67016453]
[1748815202783,19.49149041,156.97,156.92,8.04281217]
[1748815202986,233.41149041,156.98,156.94,19.49149041]
[1748815203168,168.39149041,156.98,156.93,19.49149041]
[1748815203485,148.9,156.98,156.93,19.49149041]
[1748815203685,168.39149041,156.98,156.93,19.49149041]
[1748815204266,148.9,156.98,156.94,19.49149041]
[1748815204669,148.9,156.98,156.95,19.49149041]
[1748815205588,148.9,156.98,156.95,25.86290504]
[1748815206284,148.9,156.98,156.96,0.5]
[1748815207784,148.9,156.98,156.97,19.49149041]
[1748815208693,148.9,157.04,156.97,19.49149041]
[1748815208869,148.9,157.03,157.0,19.49149041]
[1748815209069,148.9,157.03,157.0,10.1]
[1748815209558,148.9,157.03,157.02,6.36861546]
[1748815209979,148.9,157.03,157.02,25.86010587]
[1748815211268,1.5291,157.09,157.02,6.36861546]
[1748815211477,1.5291,157.09,157.05,19.49149041]
[1748815211870,1.5291,157.09,157.06,19.49149041]
[1748815212892,26.06733868,157.11,157.06,19.49149041]
[1748815213092,51.85652999,157.11,157.06,19.49149041]
[1748815213269,6.36503958,157.11,157.08,19.49149041]
[1748815213785,6.36503958,157.11,157.07,19.49149041]
[1748815214887,32.36461875,157.12,157.08,19.49149041]
[1748815215192,6.36461875,157.12,157.08,19.49149041]
[1748815215381,202.41916159,157.13,157.08,19.49149041]
[1748815215576,176.41916159,157.13,157.08,19.49149041]
[1748815215776,182.92767118,157.13,157.08,19.49149041]
[1748815216795,202.41916159,157.13,157.08,19.49149041]
[1748815217291,170.05499041,157.13,157.09,0.5]
[1748815217481,150.5635,157.13,157.09,19.99149041]
[1748815217795,170.05499041,157.13,157.09,0.5]
[1748815217965,150.5635,157.13,157.09,19.99149041]
[1748815218169,150.5635,157.13,157.09,0.5]
[1748815218376,148.9,157.13,157.09,0.5]
[1748815218695,148.9,157.13,157.09,19.99149041]
[1748815219374,148.9,157.13,157.12,19.49149041]
[1748815219573,168.39149041,157.13,157.09,14.8565669]
[1748815219768,168.39149041,157.13,157.09,14.3565669]
[1748815219988,148.9,157.13,157.09,14.3565669]
[1748815220186,168.39149041,157.13,157.09,14.3565669]
[1748815220373,168.39149041,157.13,157.09,7.991]
[1748815220797,168.39149041,157.13,157.09,14.35671925]
[1748815220977,148.9,157.13,157.09,14.35671925]
[1748815221182,168.39149041,157.13,157.09,14.35671925]
[1748815221677,168.39149041,157.13,157.08,6.36611018]
[1748815221883,168.39149041,157.13,157.08,25.85760059]
[1748815222186,168.39149041,157.13,157.09,0.5]
[1748815222983,168.39149041,157.13,157.09,6.8657573]
[1748815228893,148.9,157.18,157.14,26.0]
[1748815229203,19.49149041,157.17,157.14,26.0]
[1748815229376,168.39149041,157.18,157.14,26.0]
[1748815230372,168.39149041,157.18,157.14,32.36343139]
[1748815230572,168.39149041,157.18,157.14,26.0]
[1748815230769,19.49149041,157.15,157.11,65.16]
[1748815230993,19.49149041,157.14,157.11,65.16]
[1748815231193,19.49149041,157.14,157.1,49.34]
[1748815231395,19.49149041,157.13,157.1,49.34]
[1748815231787,19.49149041,157.13,157.11,6.36458252]
[1748815232407,19.49149041,157.12,157.11,6.36458252]
[1748815232975,19.49149041,157.12,157.1,16.54530829]
[1748815233180,19.49149041,157.12,157.1,10.18]
[1748815233582,19.49149041,157.11,157.1,10.18]
[1748815234008,19.49149041,157.11,157.08,45.50613029]
[1748815234184,19.49149041,157.1,157.07,12.50227759]
[1748815234388,19.49149041,157.09,157.06,10.18]
[1748815234586,174.9,157.16,157.06,49.3]
[1748815234587,19.49149041,157.08,157.06,49.3]
[1748815234780,188.02,157.15,157.06,55.6668777]
[1748815234983,19.49149041,157.08,157.06,55.6668777]
[1748815235709,19.49149041,157.09,157.06,55.6668777]
[1748815236010,19.49149041,157.08,157.07,0.5]
[1748815236611,19.49149041,157.08,157.02,55.66860927]
[1748815236791,19.49149041,157.05,157.02,55.66860927]
[1748815236989,19.49149041,157.06,157.02,55.66860927]
[1748815239010,19.49149041,157.06,157.02,55.64860927]
[1748815240206,19.49149041,157.07,157.02,55.64860927]
[1748815240505,19.49149041,157.07,157.02,16.54860927]
[1748815240709,19.49149041,157.07,157.02,55.62860927]
[1748815241086,19.49149041,157.07,157.02,75.12009968]
[1748815241281,7.88066186,157.1,157.02,75.12009968]
[1748815241593,19.49149041,157.07,157.02,75.12009968]
[1748815241800,7.88066186,157.1,157.02,75.12009968]
[1748815242096,19.49149041,157.07,157.02,75.12009968]
[1748815243688,6.36466446,157.12,157.03,38.14113927]
[1748815244004,19.49149041,157.09,157.04,19.49149041]
[1748815244218,148.9,157.11,157.05,19.49149041]
[1748815244219,168.39149041,157.11,157.05,19.49149041]
[1748815244518,19.49149041,157.1,157.06,6.3669935]
[1748815245821,19.49149041,157.1,157.05,18.64964886]
[1748815245984,19.49149041,157.1,157.07,0.5]
[1748815246601,19.49149041,157.09,157.07,0.5]
[1748815247397,19.49149041,157.1,157.07,6.86642016]
[1748815247791,148.9,157.11,157.07,6.86642016]
[1748815247994,19.49149041,157.1,157.07,6.86642016]
[1748815250398,168.39149041,157.11,157.07,6.86642016]
[1748815250923,148.9,157.11,157.07,6.86642016]
[1748815251098,148.9,157.11,157.07,26.35791057]
[1748815253427,168.39149041,157.11,157.07,6.86642016]
[1748815253626,168.39149041,157.11,157.07,0.5]
[1748815253812,19.49149041,157.1,157.07,0.5]
[1748815254800,19.49149041,157.09,157.07,0.5]
[1748815257903,19.49149041,157.1,157.07,6.86645429]
[1748815258802,148.9,157.11,157.07,6.86645429]
[1748815259007,19.49149041,157.1,157.07,6.86645429]
[1748815261833,168.39149041,157.11,157.07,6.36645429]
[1748815262341,148.9,157.1,157.07,6.36645429]
[1748815264132,19.49149041,157.13,157.07,80.75441506]
[1748815264333,168.39149041,157.13,157.08,19.49149041]
[1748815264539,148.9,157.13,157.09,22.28022151]
[1748815264739,148.9,157.13,157.09,41.77171192]
[1748815264941,148.9,157.13,157.1,19.49149041]
[1748815265318,150.5105,157.18,157.12,19.49149041]
[1748815265633,19.49149041,157.17,157.11,10.16]
[1748815265806,19.49149041,157.17,157.12,19.49149041]
[1748815266223,170.00199041,157.18,157.13,19.49149041]
[1748815266422,170.00199041,157.18,157.14,6.36375206]
[1748815266708,19.49149041,157.17,157.14,6.36375206]
[1748815267033,148.9,157.18,157.14,6.36375206]
[1748815267210,148.9,157.18,157.14,25.85524247]
[1748815268113,148.9,157.18,157.15,19.49149041]
[1748815268327,148.9,157.18,157.14,25.85524247]
[1748815269429,168.39149041,157.18,157.14,6.36375206]
[1748815270327,148.9,157.18,157.14,6.36375206]
[1748815270511,168.39149041,157.18,157.14,6.36375206]
[1748815271621,148.9,157.18,157.14,25.85524247]
[1748815272017,168.39149041,157.18,157.14,6.36375206]
[1748815272224,0.36513589,157.21,157.17,45.49149041]
[1748815272410,0.36513589,157.21,157.17,26.0]
[1748815272607,0.36513589,157.21,157.17,45.49149041]
[1748815272813,0.36513589,157.21,157.17,26.0]
[1748815273039,19.8566263,157.21,157.18,6.36213258]
[1748815273209,0.36513589,157.21,157.18,6.36213258]
[1748815273417,0.36513589,157.21,157.18,25.85362299]
[1748815273617,0.36513589,157.21,157.18,6.36213258]
[1748815274410,19.8566263,157.21,157.17,32.36246747]
[1748815274613,19.49149041,157.2,157.16,55.74283417]
[1748815274841,19.49149041,157.19,157.16,55.74283417]
[1748815275250,19.49149041,157.19,157.16,49.38]
[1748815275739,19.49149041,157.19,157.16,10.16]
[1748815276036,19.49149041,157.18,157.16,10.16]
[1748815276237,19.49149041,157.17,157.16,10.16]
[1748815276416,19.49149041,157.17,157.13,51.01373004]
[1748815276744,19.49149041,157.17,157.13,18.64964886]
[1748815277216,19.49149041,157.15,157.12,10.16]
[1748815279537,19.49149041,157.14,157.12,10.16]
[1748815282630,19.49149041,157.13,157.12,10.16]
[1748815282827,19.49149041,157.13,157.1,1.33805281]
[1748815283038,19.49149041,157.12,157.1,1.33805281]
[1748815283346,19.49149041,157.13,157.1,1.33805281]
[1748815286427,19.49149041,157.12,157.1,1.33805281]
[1748815288145,19.49149041,157.11,157.1,1.33805281]
[1748815288343,19.49149041,157.12,157.1,1.33805281]
[1748815289051,19.49149041,157.11,157.1,1.33805281]
[1748815289439,168.39149041,157.13,157.1,1.33805281]
[1748815289626,19.49149041,157.12,157.1,1.33805281]
[1748815292650,19.49149041,157.12,157.1,7.7034126]
[1748815296261,19.49149041,157.12,157.1,1.33805281]
[1748815296563,148.9,157.13,157.1,1.33805281]
[1748815296765,19.49149041,157.12,157.1,1.33805281]
[1748815296967,19.49149041,157.11,157.1,1.33805281]
[1748815297251,19.49149041,157.12,157.1,7.70334134]
[1748815297459,148.9,157.13,157.1,7.70334134]
[1748815297645,19.49149041,157.12,157.1,7.70334134]
[1748815299137,148.9,157.13,157.1,7.70334134]
[1748815299456,168.39149041,157.13,157.1,7.70334134]
[1748815301350,19.49149041,157.12,157.1,7.70334134]
[1748815304691,168.39149041,157.13,157.1,7.70334134]
[1748815305549,19.49149041,157.12,157.1,7.70334134]
[1748815309767,148.9,157.13,157.1,7.70334134]
[1748815309945,168.39149041,157.13,157.1,7.70334134]
[1748815310151,19.49149041,157.12,157.1,7.70334134]
[1748815311568,19.49149041,157.13,157.1,7.70334134]
[1748815317578,6.36253737,157.17,157.1,7.70334134]
[1748815317778,19.49149041,157.13,157.1,7.70334134]
[1748815318586,19.49149041,157.11,157.1,7.70334134]
[1748815319353,19.49149041,157.11,157.1,1.33805281]
[1748815320279,8.02517695,157.13,157.1,1.33805281]
[1748815320475,19.49149041,157.11,157.1,1.33805281]
[1748815324861,1.6609,157.13,157.1,7.70340764]
[1748815325072,19.49149041,157.11,157.1,1.33805281]
[1748815325979,19.49149041,157.11,157.1,7.70342518]
[1748815326873,19.49149041,157.12,157.1,7.70342518]
[1748815327070,19.49149041,157.13,157.1,7.70342518]
[1748815327270,148.9,157.15,157.1,7.70342518]
[1748815327470,19.49149041,157.13,157.1,7.70342518]
[1748815329074,148.9,157.15,157.1,7.70342518]
[1748815329384,19.49149041,157.13,157.1,7.70342518]
[1748815330085,148.9,157.19,157.13,6.36415706]
[1748815330264,148.9,157.19,157.15,19.49149041]
[1748815330465,19.49149041,157.2,157.15,19.49149041]
[1748815330664,19.49149041,157.2,157.13,6.36415706]
[1748815330665,19.49149041,157.19,157.13,6.36415706]
[1748815330864,19.49149041,157.14,157.13,6.36415706]
[1748815331089,19.49149041,157.14,157.1,18.04333871]
[1748815331283,19.49149041,157.11,157.1,18.04333871]
[1748815331593,19.49149041,157.11,157.1,1.33805281]
[1748815332503,19.49149041,157.13,157.1,7.70327076]
[1748815332795,19.49149041,157.15,157.1,27.19476117]
[1748815333001,19.49149041,157.11,157.1,7.70327076]
[1748815333199,19.49149041,157.11,157.1,7.70342518]
[1748815333566,19.49149041,157.11,157.1,1.33805281]
[1748815334386,19.49149041,157.11,157.06,16.70694471]
[1748815334587,19.49149041,157.07,157.06,10.34]
[1748815334771,19.49149041,157.07,157.02,16.72861546]
[1748815334976,19.49149041,157.03,157.02,16.72861546]
[1748815336362,19.49149041,157.06,157.02,16.72861546]
[1748815336995,19.49149041,157.03,157.02,10.36]
[1748815337704,1.6575,157.1,157.02,36.22010587]
[1748815337903,148.9,157.11,157.07,19.49149041]
[1748815338187,1.6229,157.14,157.09,6.36577757]
[1748815338379,19.49149041,157.12,157.09,6.36577757]
[1748815338605,19.49149041,157.1,157.04,10.36]
[1748815338802,19.49149041,157.05,157.04,10.36]
[1748815339514,148.9,157.11,157.05,18.64964886]
[1748815339701,12.81505494,157.16,157.09,19.49149041]
[1748815340085,19.49149041,157.13,157.09,6.36577757]
[1748815340311,19.49149041,157.1,157.06,6.3669935]
[1748815340610,19.49149041,157.07,157.04,10.36]
[1748815340812,19.49149041,157.05,157.04,16.72775136]
[1748815341111,19.49149041,157.06,157.04,16.72775136]
[1748815341493,19.49149041,157.09,157.04,52.13875272]
[1748815342001,19.49149041,157.08,157.04,32.64726231]
[1748815342390,148.9,157.12,157.04,52.13875272]
[1748815342616,148.9,157.11,157.07,19.49149041]
[1748815342804,19.49149041,157.13,157.08,38.14113927]
[1748815343113,19.49149041,157.12,157.08,38.14113927]
[1748815343689,19.49149041,157.11,157.07,6.1315]
[1748815343894,160.08355494,157.16,157.07,6.1315]
[1748815343895,19.49149041,157.09,157.07,26.0]
[1748815344313,19.49149041,157.1,157.07,26.0]
[1748815344514,19.49149041,157.1,157.08,6.36618283]
[1748815344719,19.49149041,157.09,157.05,6.36739891]
[1748815344898,19.49149041,157.08,157.05,6.36739891]
[1748815346307,19.49149041,157.09,157.05,6.36739891]
[1748815347099,19.49149041,157.08,157.05,6.36739891]
[1748815347413,19.49149041,157.06,157.05,6.36739891]
[1748815347824,19.49149041,157.06,157.04,16.72779776]
[1748815348134,19.49149041,157.05,157.04,16.72779776]
[1748815348296,19.49149041,157.05,157.04,10.36]
[1748815348622,19.49149041,157.05,157.04,16.72780438]
[1748815349331,19.49149041,157.08,157.04,16.72780438]
[1748815349531,148.9,157.09,157.05,19.49149041]
[1748815349832,1.6461,157.14,157.06,38.14113927]
[1748815350023,19.49149041,157.12,157.07,19.49149041]
[1748815350407,19.49149041,157.11,157.06,64.14113927]
[1748815351225,19.49149041,157.11,157.07,6.36658814]
[1748815351822,19.49149041,157.08,157.04,10.36]
[1748815352015,19.49149041,157.07,157.04,10.36]
[1748815352505,148.9,157.13,157.04,16.72771809]
[1748815352705,168.39149041,157.13,157.08,19.49149041]
[1748815352912,168.39149041,157.13,157.06,18.64964886]
[1748815352913,19.49149041,157.13,157.06,18.64964886]
[1748815353222,19.49149041,157.08,157.06,6.3669935]
[1748815354119,19.49149041,157.09,157.06,6.3669935]
[1748815357002,19.49149041,157.1,157.06,46.3269935]
[1748815357258,19.49149041,157.09,157.06,46.3269935]
[1748815357522,19.49149041,157.1,157.06,6.3669935]
[1748815358412,168.39149041,157.13,157.07,19.49149041]
[1748815358716,19.49149041,157.12,157.06,41.77596767]
[1748815358915,19.49149041,157.11,157.06,41.77596767]
[1748815359508,19.49149041,157.1,157.06,22.28447726]
[1748815360008,19.49149041,157.07,157.04,10.36]
[1748815360214,19.49149041,157.05,157.04,16.72776327]
[1748815360422,19.49149041,157.06,157.04,16.72776327]
[1748815361540,148.9,157.13,157.04,52.13876463]
[1748815361834,148.9,157.13,157.04,32.64727422]
[1748815361835,19.49149041,157.09,157.04,32.64727422]
[1748815362437,19.49149041,157.08,157.04,32.64727422]
[1748815363423,19.49149041,157.06,157.04,16.72776327]
[1748815364759,19.49149041,157.07,157.04,16.72776327]
[1748815365113,19.49149041,157.08,157.04,16.72776327]
[1748815365314,1.6461,157.14,157.04,32.64727422]
[1748815365520,19.49149041,157.1,157.06,6.3669935]
[1748815366953,19.49149041,157.07,157.04,16.72745765]
[1748815367120,19.49149041,157.05,157.04,16.72745765]
[1748815367713,19.49149041,157.06,157.04,10.36]
[1748815368215,19.49149041,157.06,157.04,16.72774828]
[1748815369917,19.49149041,157.08,157.04,16.72774828]
[1748815371825,14.26544406,157.07,157.04,16.72774828]
[1748815374423,14.26544406,157.06,157.04,16.72774828]
[1748815374953,14.26544406,157.05,157.04,10.36]
[1748815375442,148.9,157.11,157.04,30.99318399]
[1748815375642,14.26544406,157.08,157.04,32.64725088]
[1748815376019,148.9,157.1,157.04,32.64725088]
[1748815376227,14.26544406,157.08,157.04,32.64725088]
[1748815377258,14.26544406,157.07,157.04,16.72773993]
[1748815377454,14.26544406,157.05,157.04,10.36]
[1748815378545,14.26544406,157.05,157.01,6.36888952]
[1748815378749,14.26544406,157.04,157.01,6.36888952]
[1748815379262,14.26544406,157.05,157.01,6.36888952]
[1748815379424,14.26544406,157.06,157.01,20.63433358]
[1748815379621,148.9,157.08,157.03,14.26544406]
[1748815379849,148.9,157.08,156.99,71.64854733]
[1748815379850,14.26544406,157.04,156.98,1.31673411]
[1748815380153,14.26544406,156.99,156.98,1.31673411]
[1748815382159,14.26544406,157.0,156.98,7.68697235]
[1748815382960,14.26544406,157.0,156.98,1.31673411]
[1748815383173,156.92412788,157.03,156.98,1.31673411]
[1748815383337,21.42163415,156.99,156.98,1.31673411]
[1748815385357,150.5559,157.03,156.98,1.31673411]
[1748815385539,21.42163415,157.0,156.98,1.31673411]
[1748815386331,21.42163415,156.99,156.98,1.31673411]
[1748815388431,148.9,157.02,156.98,7.68697235]
[1748815388628,21.42163415,157.0,156.98,7.68697235]
[1748815388830,21.42163415,156.99,156.98,1.31673411]
[1748815393569,21.42163415,156.99,156.98,7.68696119]
[1748815393976,21.42163415,156.99,156.98,1.31673411]
[1748815397050,21.42163415,156.99,156.95,6.3713522]
[1748815397364,6.36870651,157.02,156.95,6.3713522]
[1748815397660,21.42163415,156.97,156.95,6.3713522]
[1748815398861,21.42163415,156.98,156.94,22.30151649]
[1748815399060,21.42163415,156.99,156.94,43.72315064]
[1748815399256,1.6559,157.03,156.94,43.72315064]
[1748815399257,1.6559,157.03,156.94,22.30151649]
[1748815399475,170.32163415,156.98,156.94,22.30151649]
[1748815400366,21.42163415,156.96,156.94,6.37186185]
[1748815400864,21.42163415,156.97,156.94,6.37186185]
[1748815401056,148.9,156.98,156.94,43.72315064]
[1748815401964,170.32163415,156.98,156.94,22.30151649]
[1748815403275,148.9,156.98,156.94,43.72315064]
[1748815404241,148.9,156.98,156.96,6.37104994]
[1748815405168,163.18067862,156.98,156.96,6.37104994]
[1748815407373,148.9,156.98,156.96,6.37104994]
[1748815407572,148.9,156.98,156.96,46.07104994]
[1748815409269,163.18067862,156.98,156.96,46.07104994]
[1748815410575,148.9,156.98,156.96,46.07104994]
[1748815413903,148.9,156.98,156.96,6.37104994]
[1748815414069,14.28067862,156.97,156.95,16.95133335]
[1748815414270,148.9,156.98,156.95,16.95133335]
[1748815414467,14.28067862,156.96,156.95,16.95133335]
[1748815416076,14.28067862,156.97,156.95,16.95133335]
[1748815416387,163.18067862,156.98,156.95,16.95133335]
[1748815416567,163.18067862,156.98,156.95,56.57133335]
[1748815416971,148.9,156.98,156.95,56.57133335]
[1748815417178,163.18067862,156.98,156.95,56.57133335]
[1748815417386,148.9,156.98,156.95,72.49997304]
[1748815417890,148.9,156.98,156.95,86.78065166]
[1748815418085,14.28067862,157.0,156.95,112.78065166]
[1748815418293,148.9,157.02,156.95,112.78065166]
[1748815418477,14.28067862,157.0,156.95,112.78065166]
[1748815419504,14.28067862,157.01,156.97,6.37064407]
[1748815419802,14.28067862,157.01,156.97,46.01064407]
[1748815420695,148.9,157.02,156.98,14.28067862]
[1748815420883,148.9,157.02,156.99,39.64]
[1748815421196,14.28067862,157.02,156.99,39.64]
[1748815421777,15.93657862,157.03,156.99,39.64]
[1748815421975,14.28067862,157.03,156.99,39.64]
[1748815422195,1.6405,157.07,156.99,39.64]
[1748815422393,14.28067862,157.05,157.0,32.93032748]
[1748815422576,1.6405,157.07,157.0,32.93032748]
[1748815422577,14.28067862,157.04,157.01,16.94902108]
[1748815422786,148.9,157.08,157.01,16.94902108]
[1748815423003,148.9,157.08,157.02,53.92067862]
[1748815423199,148.9,157.08,157.02,39.64]
[1748815423520,14.28067862,157.07,157.02,53.92067862]
[1748815424697,148.9,157.08,157.03,6.36820989]
[1748815424890,14.28067862,157.07,157.03,22.28873463]
[1748815425093,14.28067862,157.08,157.03,36.56941325]
[1748815425480,14.85396896,157.11,157.04,32.93032748]
[1748815425681,14.28067862,157.1,157.05,53.90067862]
[1748815425895,29.13464758,157.11,157.06,14.28067862]
[1748815426096,14.85396896,157.11,157.06,14.28067862]
[1748815426313,29.13464758,157.11,157.07,10.48]
[1748815426617,14.28067862,157.11,157.07,10.48]
[1748815426979,14.28067862,157.11,157.08,6.36618283]
[1748815427509,148.9,157.12,157.08,6.36618283]
[1748815427805,163.18067862,157.12,157.08,6.36618283]
[1748815430100,14.28067862,157.1,157.08,6.36618283]
[1748815430303,163.18067862,157.12,157.08,6.36618283]
[1748815430893,148.9,157.12,157.08,6.36618283]
[1748815431528,163.18067862,157.12,157.08,6.36618283]
[1748815432381,148.9,157.12,157.08,6.36618283]
[1748815432687,163.18067862,157.12,157.08,6.36618283]
[1748815433182,14.28067862,157.13,157.09,18.64964886]
[1748815434111,14.28067862,157.13,157.1,6.36537237]
[1748815434289,14.28067862,157.14,157.1,6.36537237]
[1748815436200,14.28067862,157.15,157.1,62.05948192]
[1748815436416,163.18067862,157.16,157.11,72.47032748]
[1748815436606,148.9,157.16,157.12,14.28067862]
[1748815436804,148.9,157.16,157.13,10.48]
[1748815437310,148.9,157.16,157.14,6.36375206]
[1748815438588,149.26513589,157.21,157.14,76.11381085]
[1748815438793,14.28067862,157.19,157.14,76.11381085]
[1748815439517,149.26513589,157.21,157.14,61.83313223]
[1748815439716,14.28067862,157.18,157.14,61.83313223]
[1748815440998,14.28067862,157.17,157.14,45.92375206]